Cogmind - Beta 14 @@@ ROGUE MODE // 2024.09.16 @ 21:31:39 Player: Dull Result: Destroyed by as-91672 with Assembled Rifle Performance ------------- Evolutions (0) 0 Regions Visited (2) 400 Robots Destroyed (29) 145 Value Destroyed (651) 651 Prototype IDs (0) 0 Alien Tech Used (0) 0 Bonus (-75) -75 TOTAL SCORE: 1121 Bonus ------- Friendly Fire -75 Cogmind --------- Core Integrity 0/250 Matter 191/300 Energy 100/100 System Corruption 0% Temperature Cool (0) Movement Treading (320) Ox2 Location -10/Mines Parts ------- > --- POWER (1) -------- (None) > --- PROPULSION (2) --- Light Treads Light Treads > --- UTILITY (2) ------ Improved Heat Sink Huge Storage Unit > --- WEAPON (2) ------- Assault Rifle Light Assault Rifle > --- INVENTORY (25) --- Ion Engine Ion Engine Ion Engine Ion Engine Light Treads Light Treads Light Treads Wheel Improved Heat Sink Hacking Suite Medium Laser Light Cannon Mace Peak State ------------ > --- POWER ------------ Ion Engine > --- PROPULSION ------- Light Treads Light Treads > --- UTILITY ---------- Improved Heat Sink Large Storage Unit > --- WEAPON ----------- Light Assault Rifle Light Assault Rifle > --- INVENTORY -------- Ion Engine Ion Engine Ion Engine Ion Engine Light Treads Light Treads Light Treads Wheel Improved Heat Sink Hacking Suite Medium Laser Assault Rifle Light Cannon Grenade Launcher Mace [Rating: 11] Favorites ----------- Power Ion Engine Engine Ion Engine Propulsion Light Treads Treads Light Treads Leg Aluminum Leg Utility Improved Heat Sink Device Improved Heat Sink Storage Small Storage Unit Weapon Light Assault Rifle Ballistic Gun Light Assault Rifle Ballistic Cannon Light Cannon Launcher Grenade Launcher Build | -11 -10 -10 ------- Run | Yrd Mat Min Slots Evolved . | . . . Power . | . . . Propulsion . | . . . Utility . | . . . Weapon . | . . . Parts Attached 22 | 1 16 5 Power 2 | . 2 . Engine 2 | . 2 . Core . | . . . Reactor . | . . . Propulsion 3 | . 3 . Treads 3 | . 3 . Leg . | . . . Wheel . | . . . Hover . | . . . Flight . | . . . Utility 6 | 1 4 1 Device 3 | 1 2 . Storage 3 | . 2 1 Processor . | . . . Hackware . | . . . Protection . | . . . Artifact . | . . . Weapon 11 | . 7 4 Energy Gun . | . . . Energy Cannon . | . . . Ballistic Gun 3 | . . 3 Ballistic Cannon 4 | . 4 . Launcher 4 | . 3 1 Special Weapon . | . . . Impact Weapon . | . . . Slashing Weapon . | . . . Piercing Weapon . | . . . Special Melee Weapon . | . . . Unidentified Prototypes . | . . . Parts Lost 4 | . . 4 Power 1 | . . 1 Propulsion . | . . . Utility . | . . . Weapon 3 | . . 3 Highest Loss Streak 3 | . . 3 To Critical Strikes . | . . . Average Slot Usage (%) 99 | . 99 97 Engine 13 | . 14 12 Treads 27 | . 27 28 Device 14 | . 14 14 Storage 14 | . 14 14 Ballistic Gun 15 | . 14 25 Ballistic Cannon 11 | . 13 1 Peak Build Rating 11 | 9 10 11 Average Rating 9 | 6 9 10 On Entrance 8 | 6 9 10 Naked Turns . | . . . Heaviest Build 88 | 11 30 88 Greatest Support 40 | 20 40 40 Greatest Overweight (x) 2 | . . 2 Average Overweight (x) . | . . 1 Largest Inventory Capacity 25 | 8 15 25 Average Capacity 12 | 8 11 22 Most Carried 15 | 7 14 15 Average Carried 10 | 6 9 14 Final Capacity 25 | 8 15 25 Final Carried 14 | 6 14 13 Class Distribution -------------------- 100% | Mutant Dominant Class ---------------- Mutant | -10/Materials Mutant | -10/Mines Resources | -11 -10 -10 ----------- Run | Yrd Mat Min Matter Collected 766 | 228 485 53 Remotely . | . . . Salvage Created 798 | 129 546 123 Parts 56 | 10 34 12 Haulers Intercepted 1 | . 1 . Recyclers Shooed 1 | 1 . . Parts Field Recycled . | . . . Retrieved Matter . | . . . Parts Self-Destructed . | . . . Prevented . | . . . Kills | -11 -10 -10 ------- Run | Yrd Mat Min Combat Hostiles Destroyed 31 | . 15 16 Guns 13 | . 4 9 Cannons 11 | . 11 . AOE 7 | . . 7 Classes Destroyed 8 | 2 5 1 Tunneler 3 | 3 . . Hauler 1 | . 1 . Recycler 1 | 1 . . Operator 2 | . 2 . Watcher 1 | . 1 . Swarmer 8 | . 2 6 Grunt 13 | . 13 . Assembled 10 | . . 10 Best Kill Streak 10 | 2 4 10 Combat Bots Only 10 | . 4 10 Max Kills in Single Turn 3 | 1 1 3 Gunslinging . | . . . Exploded 3 | . . 3 Melee . | . . . Uniques/NPCs Destroyed . | . . . Combat | -11 -10 -10 -------- Run | Yrd Mat Min Hostile Shots Fired 148 | . 52 96 Missed 39 | . 13 26 Damage Taken 1211 | . 474 737 Core 255 | . 113 142 Absorbed by Shields . | . . . Regen/Repaired (Parts) 127 | . 127 . Core Remaining (%) 100 | 100 . . Volleys Fired 106 | 9 61 36 Largest 2 | 2 2 2 Hottest 55 | 40 55 55 Shots Fired 200 | 18 118 64 Gun 133 | 18 57 58 Cannon 58 | . 57 1 Launcher 9 | . 4 5 Special . | . . . Kinetic 191 | 18 114 59 Thermal . | . . . Explosive 9 | . 4 5 Electromagnetic . | . . . Robot Hit Streak 13 | 9 13 6 Robot Miss Streak 4 | 1 4 4 Penetration Max . | . . . Secondary Targets 1 | . . 1 Max Gunslinging Chain 1 | . . 1 Shots Hit Robots 125 | 13 74 38 Core Hits 72 | 6 30 36 Critical Kills . | . . . Critical Parts Destroyed . | . . . Critical Strikes . | . . . Melee Attacks . | . . . Impact . | . . . Slashing . | . . . Piercing . | . . . Sneak Attacks . | . . . Combat Hostiles . | . . . Follow-up Attacks . | . . . Damage Inflicted 2190 | 116 1017 1057 Guns 717 | 116 284 317 Cannons 753 | . 733 20 Explosions 720 | . . 720 Melee . | . . . Ramming . | . . . Kinetic 1470 | 116 1017 337 Thermal . | . . . Explosive 720 | . . 720 Electromagnetic . | . . . Impact . | . . . Slashing . | . . . Piercing . | . . . Highest Corruption . | . . . Average Corruption . | . . . Corruption Purged . | . . . Corruption Blocked . | . . . Overload Shots . | . . . Overflow Damage 23 | . . 23 Projectiles . | . . . Explosions 23 | . . 23 Melee . | . . . Knockbacks 4 | . 4 . Impact . | . . . Kinetic 4 | . 4 . Secondary . | . . . Self-Inflicted Damage 45 | . . 45 Shots 2 | . . 2 Rammed . | . . . Targets Rammed . | . . . Kicked . | . . . Crushed . | . . . Highest Temperature 84 | . 84 1 Average Temperature 34 | . 35 1 Received Heat Transfer 266 | . 246 20 Siege Activations . | . . . Robots Corrupted . | . . . Combat Hostiles . | . . . Parts Fried . | . . . Impact Corruptions . | . . . Robots Melted . | . . . Combat Hostiles . | . . . Parts Melted . | . . . Heat Transferred . | . . . Parts Sabotaged . | . . . Parts Stolen . | . . . Parts Stripped . | . . . Power Chain Reactions . | . . . Alert | -11 -10 -10 ------- Run | Yrd Mat Min Peak Influence 208 | 20 189 208 Initial 43 | . 13 43 Average 79 | 10 75 120 Maximum Alert Level 1 | . . 1 Low Security (%) 99 | 100 100 95 Level 1 . | . . 4 Level 2 . | . . . Level 3 . | . . . Level 4 . | . . . Level 5 . | . . . High Security . | . . . Max Security . | . . . Squads Dispatched 3 | . 3 . Investigation 1 | . 1 . Extermination . | . . . Reinforcement 2 | . 2 . Assault . | . . . Garrison . | . . . Intercept . | . . . Searches Triggered . | . . . Construction Impeded . | . . . Haulers Reinforced . | . . . Active Scanning Responses . | . . . Cargo Convoy Interrupts . | . . . Stealth | -11 -10 -10 --------- Run | Yrd Mat Min Distress Signals 4 | . 4 . Communications Jammed . | . . . Distress Signals . | . . . Times Spotted 50 | . 28 22 Peak Tracking Total 18 | . 5 18 Tactical Retreats 3 | . 1 2 Traps | -11 -10 -10 ------- Run | Yrd Mat Min Traps Triggered . | . . . Indirectly . | . . . Trap Hack Attempts . | . . . Triggered . | . . . Disarmed . | . . . Reprogrammed . | . . . Reused . | . . . Traps Extracted . | . . . Installed . | . . . Triggered . | . . . Machines | -11 -10 -10 ---------- Run | Yrd Mat Min Machines Disabled . | . . . Max in Single Turn . | . . . Machines Repaired . | . . . Machines Dismantled . | . . . Machines Sabotaged . | . . . Overloaded Fab Kills . | . . . Hacking | -11 -10 -10 --------- Run | Yrd Mat Min Machines Accessed 9 | . 9 . Terminals 6 | . 6 . Fabricators . | . . . Repair Stations 1 | . 1 . Recycling Units 2 | . 2 . Scanalyzers . | . . . Garrison Access . | . . . Total Hacks 22 | . 22 . Successful 8 | . 8 . Failed 13 | . 13 . Catastrophic 2 | . 2 . Database Lockouts 1 | . 1 . Manual 18 | . 18 . Terminals 16 | . 16 . Fabricators . | . . . Repair Stations 2 | . 2 . Recycling Units 4 | . 4 . Scanalyzers . | . . . Garrison Access . | . . . Terminal Hacks 4 | . 4 . Robot Analysis 2 | . 2 . Branch Access Points 1 | . 1 . Registered Components 1 | . 1 . Fabricator Hacks . | . . . Repair Station Hacks 2 | . 2 . Scan Component 1 | . 1 . Repair 1 | . 1 . Recycling Unit Hacks . | . . . Scanalyzer . | . . . Garrison Access Hacks . | . . . Unauthorized Hacks 2 | . 2 . Terminals . | . . . Fabricators . | . . . Repair Stations . | . . . Recycling Units 2 | . 2 . Reject 1 | . 1 . Mask 1 | . 1 . Scanalyzers . | . . . Garrison Access . | . . . Data Cores Recovered . | . . . Used . | . . . Hacking Detections 7 | . 7 . Full Trace Events 2 | . 2 . Feedback Events . | . . . Feedback Blocked . | . . . Robot Schematics Acquired . | . . . Robots Built . | . . . Authchips . | . . . Time . | . . . Total Robot Build Rating . | . . . Part Schematics Acquired . | . . . Parts Built . | . . . Authchips . | . . . Time . | . . . Total Part Build Rating . | . . . Parts Repaired 1 | . 1 . Time 26 | . 26 . Parts Recycled . | . . . Recycled Matter . | . . . Retrieved Matter . | . . . Retrieved Components . | . . . Parts Scanalyzed . | . . . Part Schematics Acquired . | . . . Parts Damaged . | . . . Bothacking | -11 -10 -10 ------------ Run | Yrd Mat Min Used RIF Installer . | . . . Robots Hacked . | . . . Non-combat . | . . . Combat . | . . . Robot Hacks Applied . | . . . Relay Couplers Released . | . . . Fabnet Peak Effective % . | . . . Robots Rewired . | . . . Allies Hacked . | . . . Hacks Repelled . | . . . Allies | -11 -10 -10 -------- Run | Yrd Mat Min Total Allies . | . . . Largest Group . | . . . Highest-Rated Group . | . . . Highest-Rated Ally . | . . . Total Orders . | . . . Ally Attacks . | . . . Total Damage . | . . . Kills . | . . . Allies Corrupted . | . . . Allies Melted . | . . . Intel | -11 -10 -10 ------- Run | Yrd Mat Min Robot Analysis Total 2 | . 2 . Derelict Logs Recovered 1 | . . 1 Drone Launches . | . . . Drone Recoveries . | . . . Exploration | -11 -10 -10 ------------- Run | Yrd Mat Min Turns Passed 1934 | 68 1597 269 Spaces Moved 946 | 33 846 67 Core . | . . . Treads 884 | . 817 67 Legs 62 | 33 29 . Wheels . | . . . Hover . | . . . Flight . | . . . Fastest Speed 120 | 120 120 160 Average Speed 163 | 120 158 248 Slowest Speed 320 | 120 160 320 Overloaded Moves . | . . . Propulsion Burnouts . | . . . Robots Hopped . | . . . Cave-ins Triggered . | . . . Exploration Rate (%) 41 | 4 97 24 Regions Visited 2 Branch Regions 1 Pre-discovered Areas . | . . . Known Exits Taken 1 | . 1 . Unknown Exits Taken 1 | 1 . . Scrap Searched . | . . . Spaces Dug 14 | . 14 . Terrain Destroyed 52 | . 18 34 Melee . | . . . Projectile . | . . . AOE 52 | . 18 34 Terrain Rammed . | . . . Walls Destroyed . | . . . Machines Disabled . | . . . Actions | -11 -10 -10 --------- Run | Yrd Mat Min Total 1157 | 47 995 115 Wait 57 | 3 50 4 Move 944 | 32 845 67 Hop . | . . . Pick Up 16 | 1 13 2 Fast Attach 2 | 1 1 . Attach 3 | . . 3 Detach . | . . . Swap 17 | . 15 2 Drop 12 | 1 10 1 Fire 106 | 9 61 36 Melee . | . . . Ram . | . . . Kick . | . . . Crush . | . . . Escape Stasis . | . . . Rewire . | . . . Trap . | . . . Miscellaneous . | . . . Route ------- -11/Scrapyard -10/Materials (discovered 5 exits: [*Mat x3] / *Min x2) -10/Mines History --------- Turn | Location | Event 1 | -11/Scrapyard | Discovered new exit (range 2) 69 | -11/Scrapyard | Entered Materials 289 | -10/Materials | Discovered new exit (range 10) 300 | -10/Materials | Build established: Mutant 353 | -10/Materials | Discovered new exit (range 16) 583 | -10/Materials | Discovered new exit (range 9) 869 | -10/Materials | Derelicts attacked the area 923 | -10/Materials | Central database locked down 923 | -10/Materials | Identified exit to Mines 1289 | -10/Materials | Discovered new exit (range 10) 1329 | -10/Materials | Repaired Lgt. Treads 1666 | -10/Materials | Entered Mines 1709 | -10/Mines | Core integrity fell below 50% 1766 | -10/Mines | Learned location of 1 exit from Materials 1885 | -10/Mines | Assembled infested the area 1890 | -10/Mines | Assisted by a Guerilla fighting off Assembled 1904 | -10/Mines | Core integrity fell below 20% 1934 | -10/Mines | Destroyed 10 combat bots 1935 | -10/Mines | Destroyed by as-91672 with Assembled Rifle Last Messages --------------- 01898_ as-87893 destroyed. 01900_ as-55011 destroyed. 01900_ Destroyed Asb. F-torch. 01900_ as-59737 destroyed. 01900_ as-82312 destroyed. 01900_ HV Slug penetrates as-04877. 01900_ as-04877 suffers critical hit (Destroy). 01900_ as-04877 knocked back. 01901_ The unstable cave ceiling collapses. 01902_ HV Slug penetrates as-17546. 01902_ as-17546 suffers critical hit (Destroy). 01902_ as-17546 destroyed. 01903_ 3F-PIO(h) knocked back. 01904_ 3F-PIO(h) destroyed. 01904_ as-11010 destroyed. 01905_ Grenade Launcher destroyed. 01908_ Ion Engine destroyed. 01910_ as-05939 destroyed. 01913_ as-22631 destroyed. 01914_ The unstable cave ceiling collapses. Map ----- +----------------------------------------------------+ | ??????????????????????????????? | | ??????????????????????????????? | | ??????????????????????????????? | | ??????????????????????????????? | | ??????????????????????????????? | | ??????????????????????????????? | | ??????????????????????????????? | | ??????????????????????????????? | | ??????????????????????????????? | | ?????? ???????????????????????? | | ?????# a%?????????????????????? | | ????? ?????????????????????? | | ???##% ?????????????????????? | | ??##;% ?????????????????????? | | ?## % #?????????????????????? | | ?# # #?????????????????????? | | ?# ##????????????????????? | | ## #??? ???????????????? | | # ??# #??????????????? | | ? % ##?# #??????????????? | | ?? ??# #??????????????? | | ??# % ##?# #??????????????? | | ??# # ### #??????????????? | | ??# %% #??????????????? | | ???#! ## ## #??????????????? | | ???#%]@ ## ## #??????????????? | | ???# = ## ## ###????????????? | | ???## [### ## # #????????????? | | ??###= ##%[ # #####????????? | | ?## a# ????????? | | ?# #????????????? | | ?# ########### #?? | | ?# #?? | | ?# #?? | | ?# #### ### ####?? | | ?## ##??# #?# ###### | | ??##### ######?### #??? | | ??????#####??????# #????????# | | ?????????????????# ###????????# | | ?????????????????# #??????????? | | ???????????????### #??????????? | | ??????????????## ##?????????? | | ?????????###### ####??????? | | ?????????# %##?????? | | ?????????# ####### | | ?????????########! = * | | ????????????????## %= = [ | | ?????????????????## #### ## | | ??????????????????# ### #??#%#? | | ??????????????????# #?# #??%[ ? | +----------------------------------------------------+ Best States ------------- Heat Dissipation 39 Energy Generation 10 Energy Capacity 250 Matter Stores 300 Matter Capacity 300 Sight Range 16 Terrain Scan Range 16 Terrain Scan Density 10 Evasion (%) 55 Recoil Reduction 2 Item Schematics ----------------- None Robot Schematics ------------------ None Fabricated ------------ Nothing Alien Tech Used ----------------- None Achievements -------------- None Challenges ------------ None Game ------ Seed SpectralArmorDetector Manual? 0 Play Time 00:15:56 Cumulative 93.0 hours Start 2024.09.16 @ 20:56:42 End 2024.09.16 @ 21:31:39 Sessions 1 Manual Loads 0 Difficulty Rogue Special Mode None Game No. 127 Rogue 127 Adventurer 0 Explorer 0 Win Type - Total 1 Types 1/0/0/0/0/0/0/0/0 Lore% 19 Gallery% 56 Achievement% 44 Wizard Run 0 Options --------- Layout 0 ASCII 0 Keyboard 0 Movement Mouse Keybinds 1 Fullscreen 1 Font 18/TerminusBold Map View 76x50 Zoom Use 0% Tactical HUD 1 Map Filters NONE Filters NONE Steam 1 RUN: 707d8ab4-ea5a-463a-a9d6-ce557b365a99